fUSD/lending_fUSD_20240109
["ID","MTS","AMOUNT","RATE_DAILY","PERIOD"]
[310899119,1704809746440,165.51,0.0002249,2]
[310899120,1704809763630,173.58,0.00022031,2]
[310899121,1704809777604,195.75,0.00022008,2]
[310899122,1704809812788,154.73,0.00022002,10]
[310899123,1704809813180,154.73,0.0002308,10]
[310899124,1704809813596,154.73,0.00024158,10]
[310899125,1704809844656,351.3,0.00022,2]
[310899126,1704809845466,152.18,0.00022222,2]
[310899127,1704809922861,307.56,0.00020046,2]
[310899128,1704809923085,307.56,0.0002231,2]
[310899129,1704809958839,170.37,0.00021964,2]
[310899130,1704809962907,256.27,0.00022,2]
[310899131,1704809964184,256.27,0.00022137,2]
[310899132,1704809965456,256.27,0.00022274,2]
[310899133,1704809966733,256.27,0.00022411,2]
[310899134,1704809986311,200.0,0.00021942,2]
[310899136,1704810051401,210.6465911,0.00022452,2]
[310899137,1704810063121,454.46,0.00022002,2]
[310899138,1704810094636,182.82,0.00021968,2]
[310899142,1704810140130,583.71584965,0.000225,2]
[310899143,1704810162602,2000.0,0.00022002,2]
[310899144,1704810173106,157.23,0.00022275,2]
[310899145,1704810173513,157.23,0.00022336,2]
[310899146,1704810174019,157.23,0.00022397,2]
[310899147,1704810174343,157.23,0.00022459,2]
[310899148,1704810194724,23900.0,0.00021914,2]
[310899149,1704810214322,205.0,0.00021751,2]
[310899150,1704810256743,184.88,0.00021908,2]
[310899153,1704810368782,276.8,0.00020007,2]
[310899154,1704810369009,276.8,0.00022271,2]
[310899157,1704810407806,150.0,0.00022481,2]
[310899158,1704810482300,200.0,0.00021907,2]
[310899159,1704810522313,450.9,0.00021907,2]
[310899160,1704810527665,182.82,0.00021939,2]
[310899164,1704810572594,345.19415949,0.00022,2]
[310899165,1704810587511,347.55,0.00021955,2]
[310899185,1704810631611,-269.50591435,0.00022519,2]
[310899186,1704810631620,-157.23,0.0002252,2]
[310899187,1704810631630,-300.0,0.0002256,2]
[310899188,1704810631640,-11660.17096598,0.00022561,2]
[310899189,1704810631650,-165.15,0.00022561,2]
[310899190,1704810631660,-3362.58532658,0.00022562,2]
[310899191,1704810631671,-157.23,0.00022581,2]
[310899192,1704810631681,-157.23,0.00022642,2]
[310899193,1704810631691,-832.64636525,0.00022658,2]
[310899194,1704810631702,-356.79,0.000227,2]
[310899195,1704810631713,-150.99,0.000227,2]
[310899196,1704810631724,-299.7,0.000227,2]
[310899197,1704810631735,-211.29,0.000227,2]
[310899198,1704810631745,-276.79,0.000227,2]
[310899199,1704810631756,-157.23,0.00022703,2]
[310899200,1704810631765,-686.29,0.00022703,2]
[310899201,1704810631775,-999.99,0.00022703,2]
[310899202,1704810631785,-1903.58,0.00022703,2]
[310899203,1704810631795,-1011.5,0.00022737,2]
[310899204,1704810631805,-499.99,0.00022737,2]
[310899205,1704810631815,-499.99,0.00022737,2]
[310899206,1704810631960,-157.23,0.00022764,2]
[310899208,1704810631972,-280.14979655,0.00022768,2]
[310899210,1704810631981,-492.83979718,0.00022768,2]
[310899212,1704810631991,-395.47959003,0.00022769,2]
[310899214,1704810632001,-157.23,0.00022825,2]
[310899216,1704810632011,-450.9,0.00022885,2]
[310899218,1704810632022,-157.23,0.00022886,2]
[310899220,1704810632031,-1020.4168,0.000229,2]
[310899222,1704810632042,-348.5641,0.000229,2]
[310899224,1704810632052,-1000.0,0.000229,2]
[310899226,1704810632062,-413.71389524,0.000229,2]
[310899229,1704810632072,-183.10039923,0.000229,2]
[310899230,1704810632082,-266.40241924,0.000229,2]
[310899232,1704810632093,-1260.0836,0.000229,2]
[310899235,1704810632103,-1551.80739659,0.000229,2]
[310899237,1704810632113,-446.13128435,0.000229,2]
[310899239,1704810632123,-2054.42071574,0.000229,2]
[310899241,1704810632132,-372.40011477,0.000229,2]
[310899248,1704810632199,-559.79968523,0.000229,2]
[310899250,1704810632209,-157.23,0.00022947,2]
[310899252,1704810632218,-3964.66527553,0.00022989,2]
[310899261,1704810637805,-182.41060972,0.000229,2]
[310899262,1704810637815,-492.61820646,0.00022989,2]
[310899263,1704810637824,-163.38368492,0.00022998,4]
[310899264,1704810637833,-380.90901836,0.00022998,2]
[310899265,1704810637842,-288.34262207,0.00022998,2]
[310899266,1704810637851,-219.91815105,0.00022998,2]
[310899267,1704810637860,-481.70312548,0.00022998,2]
[310899268,1704810637869,-3026.38966592,0.00022998,2]
[310899269,1704810637878,-4477.84140557,0.00022998,2]
[310899270,1704810637888,-8986.78351045,0.00022998,2]
[310899273,1704810640834,-4019.09127962,0.00022998,2]
[310899274,1704810640846,-3723.24684171,0.00022998,2]
[310899275,1704810640855,-155.0,0.00022998,2]
[310899276,1704810640864,-300.62032364,0.00022998,2]
[310899277,1704810640874,-7170.90233455,0.00022999,2]
[310899278,1704810640894,-1021.5262,0.00022999,2]
[310899318,1704810642647,-5832.04504094,0.00022999,2]
[310899320,1704810642657,-505.88913155,0.00022999,2]
[310899322,1704810642669,-171.53615181,0.00022999,2]
[310899324,1704810642678,-155.23191427,0.00022999,2]
[310899326,1704810642687,-214.57961971,0.00022999,2]
[310899328,1704810642696,-528.20860531,0.00022999,2]
[310899330,1704810642705,-150.0,0.00022999,2]
[310899332,1704810642715,-150.0,0.00022999,2]
[310899334,1704810642724,-150.0,0.00022999,2]
[310899336,1704810642733,-150.0,0.00022999,2]
[310899338,1704810642743,-150.0,0.00022999,2]
[310899340,1704810642753,-150.0,0.00022999,2]
[310899342,1704810642762,-150.0,0.00022999,2]
[310899344,1704810642772,-672681.4013349,0.00023,2]
[310899346,1704810642792,-2350.30715758,0.00023,2]
[310899347,1704810642815,-3792.01338004,0.00023,2]
[310899350,1704810645671,-315.6895181,0.00022998,2]
[310899351,1704810645731,-762.62978349,0.00022998,2]
[310899352,1704810645741,-477.94706382,0.00023,2]
[310899353,1704810691170,2250.0,0.00022,3]
[310899354,1704810721809,156.62,0.00022071,2]
[310899355,1704810722053,156.62,0.00022215,2]
[310899356,1704810722885,156.62,0.00022359,2]
[310899357,1704810852976,249.12,0.0002111,2]
[310899358,1704810960726,1250.0,0.00022,3]
[310899359,1704811138359,2672.0,0.00022,2]
[310899367,1704811274224,236.66,0.00021046,2]
[310899439,1704811566930,156.6,0.00021985,2]
[310899440,1704811577388,420.3,0.00021985,2]
[310899441,1704811653975,205.0,0.00022001,2]
[310899442,1704811692273,224.82,0.00021027,2]
[310899443,1704811723844,4109.36308953,0.00022001,2]
[310899486,1704811831976,-345.47752639,0.00022767,2]
[310899487,1704811831989,-1988.17247361,0.00022768,2]
[310899496,1704811837977,-3388.49999999,0.00022768,2]
[310899497,1704811838142,-18889.90298545,0.00022768,2]
[310899501,1704811840261,-893.78449924,0.00022768,2]
[310899502,1704811840271,-155.0,0.00022883,2]
[310899503,1704811840281,-8514.985,0.000229,2]
[310899504,1704811840290,-13025.36712259,0.000229,2]
[310899577,1704811842958,-4666.30061006,0.000229,2]
[310899580,1704811842974,-28013.13968832,0.000229,2]
[310899584,1704811843009,-2377.80000004,0.000229,2]
[310899589,1704811843079,-81039.40841985,0.000229,2]
[310899591,1704811843089,-2104.92910726,0.000229,2]
[310899593,1704811843098,-891.16802084,0.000229,2]
[310899595,1704811843108,-17014.55,0.00022918,2]
[310899597,1704811843117,-1000.0,0.00022934,2]
[310899599,1704811843127,-420.3,0.00022963,2]
[310899601,1704811843137,-512.02472198,0.00022998,2]
[310899603,1704811843151,-158.1942,0.00022998,2]
[310899605,1704811843160,-158.33436037,0.00022998,2]
[310899608,1704811843170,-579.61035159,0.00022998,2]
[310899610,1704811843181,-155.0,0.00022999,2]
[310899612,1704811843190,-262.11350351,0.00022999,2]
[310899614,1704811843200,-363593.68307779,0.00023,2]
[310899629,1704811846137,-155.0,0.00022899,2]
[310899630,1704811846148,-93254.62578546,0.00023,2]
[310899631,1704811846180,-2336.3,0.00023,2]
[310899632,1704811846203,-11319.0,0.00023,2]
[310899640,1704811851681,875.65524604,0.00021849,2]
[310899685,1704811989083,160.36,0.00022243,2]
[310899819,1704812062207,156.62,0.00022374,2]
[310899849,1704812106312,364.26,0.00022154,2]
[310899923,1704812154325,258.61,0.00020233,2]
[310899924,1704812154535,258.61,0.00022497,2]
[310900098,1704812266109,267.62,0.00022128,2]
[310900136,1704812408244,6074.05885174,0.00022128,2]
[310900154,1704812427969,4890.91024351,0.00022128,2]
[310900156,1704812464925,186.76,0.00022078,2]
[310900157,1704812465161,186.76,0.00022194,2]
[310900158,1704812465352,186.76,0.0002231,2]
[310900159,1704812465719,186.76,0.00022426,2]
[310900160,1704812479404,163.76,0.00021998,2]
[310900161,1704812479927,211.95,0.00021998,2]
[310900167,1704812490177,200.98286647,0.00021888,2]
[310900168,1704812490252,156.62,0.00022192,2]
[310900169,1704812490533,156.62,0.00022481,2]
[310900174,1704812497474,727.58510823,0.00021,2]
[310900176,1704812513474,247.84584957,0.00021,2]
[310900177,1704812519699,202.72066427,0.00021,2]
[310900179,1704812560054,1018.41615534,0.00021982,2]
[310900183,1704812579180,418.39942505,0.00021982,2]
[310900192,1704812594214,373.75,0.00022097,2]
[310900200,1704812602824,232.74,0.00020169,2]
[310900201,1704812602901,232.74,0.00022433,2]
[310900202,1704812605000,1021.39490001,0.00021,2]
[310900203,1704812620982,1021.39490001,0.00021,2]
[310900207,1704812639066,490.17195305,0.00021,2]
[310900211,1704812670264,200.0,0.00022321,2]
[310900214,1704812690661,150.0,0.00021971,2]
[310900220,1704812699597,532.13205427,0.00021,2]
[310900221,1704812699755,1106.74632661,0.00021,2]
[310900222,1704812702752,189.49317273,0.00020284,2]
[310900227,1704812703547,200.21979921,0.00020284,2]
[310900229,1704812705200,260.5314943,0.00021,2]
[310900230,1704812705287,282.12857278,0.00021,2]
[310900232,1704812707162,1020.79972294,0.00021,2]
[310900234,1704812708821,197.56149235,0.00021,2]
[310900235,1704812710531,3184.00180731,0.00021636,2]
[310900236,1704812710609,6070.39633942,0.00021,2]
[310900237,1704812710742,198.21015724,0.00021,2]
[310900238,1704812710875,401.43951448,0.0002037,2]
[310900239,1704812710953,267.49210596,0.00021,2]
[310900240,1704812711033,543.060272,0.00021,2]
[310900241,1704812711710,220.19737662,0.000189,2]
[310900242,1704812711758,269.66651415,0.00021,2]
[310900243,1704812712057,2470.25200052,0.00021862,2]
[310900244,1704812713718,1879.33925955,0.00021,2]
[310900245,1704812714642,176.84598057,0.00021,2]
[310900246,1704812715085,283.87961777,0.00021,2]
[310900247,1704812715503,559.33897738,0.00020059,2]
[310900248,1704812715676,620.72688939,0.00021636,2]
[310900249,1704812715709,174.0076398,0.00021,2]
[310900250,1704812717598,883.3850575,0.00021,2]
[310900251,1704812718305,18929.87173977,0.00021,2]
[310900256,1704812719079,155.0,0.00021,2]
[310900262,1704812722515,10166.88732766,0.00021,2]
[310900263,1704812722747,168.1,0.00021961,2]
[310900268,1704812723621,155.0,0.00021,2]
[310900271,1704812724512,208.77538949,0.00021,2]
[310900272,1704812724540,844.80069332,0.00021,2]
[310900275,1704812725328,1031.40550924,0.00021,2]
[310900276,1704812725682,3184.00180731,0.00021636,2]
[310900277,1704812727449,291.48413995,0.00021,2]
[310900278,1704812727649,178.81752813,0.00020059,2]
[310900279,1704812730040,909.40632612,0.00021862,2]
[310900282,1704812731054,276.95610583,0.00021,2]
[310900314,1704812743157,3858.4565,0.0002244,2]
[310900320,1704812744957,283.77880731,0.00021,2]
[310900331,1704812751050,991.26,0.00022012,2]
[310900339,1704812751994,520.66961615,0.00021,2]
[310900346,1704812757039,155.0,0.00021,2]
[310900357,1704812760978,283.25874774,0.00021,2]
[310900358,1704812761325,203.47773637,0.00022,2]
[310900359,1704812766591,2000.0,0.0002199,2]
[310900360,1704812767010,855.55482523,0.00021,2]
[310900361,1704812769058,312.97143084,0.00021,2]
[310900362,1704812770073,519.69213678,0.00021,2]
[310900363,1704812771470,883.76517896,0.00021,2]
[310900364,1704812772488,1250.0,0.00022,3]
[310900368,1704812783048,312.97143084,0.00021,2]
[310900369,1704812789010,696.7511419,0.00022,2]
[310900370,1704812793468,456.1393176,0.00022,2]
[310900371,1704812799055,278.66836965,0.00022,2]
[310900389,1704812845920,3181.57563138,0.00021855,2]
[310900401,1704812863989,5937.60574647,0.00022,2]
[310900402,1704812864059,11945.81411519,0.0002189,2]
[310900407,1704812868321,1000.0,0.00022083,2]
[310900408,1704812871048,221.36139,0.00022,2]
[310900413,1704812879691,161.38881867,0.00022766,7]
[310900416,1704812884352,164.08,0.00022148,2]
[310900417,1704812893968,351.71,0.00022,2]
[310900418,1704812896479,360.58392018,0.00022,2]
[310900433,1704812912477,480.25567329,0.00022148,2]
[310900434,1704812913995,163.19,0.00021822,2]
[310900435,1704812914784,156.91,0.00021985,2]
[310900436,1704812915039,156.91,0.000221,2]
[310900437,1704812915254,156.91,0.00022215,2]
[310900438,1704812915632,156.91,0.00022329,2]
[310900439,1704812915726,156.91,0.00022444,2]
[310900442,1704812921273,200.0,0.00021758,2]
[310900443,1704812923754,7413.23671885,0.00022148,2]
[310900444,1704812925415,155.44329565,0.00022148,2]
[310900445,1704812929403,573.08526084,0.00022148,2]
[310900446,1704812936155,509.91155974,0.0002026,2]
[310900447,1704812939756,5903.06309971,0.00022148,2]
[310900464,1704812963452,415.91,0.00021759,2]
[310900465,1704812966301,3197.150764,0.00022148,2]
[310900472,1704812982245,3197.150764,0.00022148,2]
[310900476,1704812999725,1757.84814649,0.00022148,2]
[310900480,1704813005529,750.0,0.00021725,2]
[310900481,1704813006671,500.0,0.00021713,2]
[310900486,1704813015640,1615.69,0.00021725,2]
[310900487,1704813020648,167.81,0.00021713,2]
[310900488,1704813021277,254.73,0.00019795,2]
[310900489,1704813021542,254.73,0.00022059,2]
[310900493,1704813026057,500.0,0.00022,2]
[310900494,1704813030415,256.27,0.00022,2]
[310900496,1704813031688,256.27,0.00022137,2]
[310900497,1704813032506,-155.0,0.00022516,2]
[310900498,1704813032516,-6426.87138327,0.00022516,2]
[310900499,1704813032526,-158.50749512,0.00022517,2]
[310900500,1704813032535,-1331.50869829,0.00022517,2]
[310900501,1704813032659,-374.64413116,0.00022517,2]
[310900502,1704813032669,-138.11122584,0.00022518,2]
[310900503,1704813032681,-384.76192103,0.00022518,2]
[310900504,1704813032691,-5683.96811853,0.00022518,2]
[310900505,1704813032701,-300.0,0.00022519,2]
[310900506,1704813032711,-939.01597948,0.00022519,2]
[310900507,1704813032720,-1757.6326286,0.0002252,2]
[310900509,1704813032731,-150.0,0.00022525,2]
[310900511,1704813032740,-265.0,0.00022529,2]
[310900513,1704813032750,-499.99,0.00022529,2]
[310900515,1704813032760,-794.73,0.00022529,2]
[310900517,1704813032771,-23452.39339115,0.0002254,2]
[310900519,1704813032783,-350.56237341,0.0002254,2]
[310900522,1704813032810,-5982.22923544,0.0002254,2]
[310900523,1704813032820,-186.76,0.00022543,2]
[310900524,1704813032830,-500.0,0.00022548,2]
[310900525,1704813032840,-156.91,0.00022558,2]
[310900526,1704813032851,-186.76,0.00022659,2]
[310900527,1704813032861,-2384.9264,0.00022666,2]
[310900528,1704813032871,-288703.51382193,0.00022666,2]
[310900529,1704813033010,256.27,0.00022274,2]
[310900530,1704813034268,256.27,0.00022411,2]
[310900545,1704813038257,-345.47752639,0.00022515,2]
[310900546,1704813038269,-511.7,0.00022548,2]
[310900547,1704813038278,-10404.07247351,0.00022666,2]
[310900548,1704813038326,-449.84446198,0.00022666,2]
[310900549,1704813038338,-64360.15044258,0.00022666,2]
[310900550,1704813038349,-518.491,0.00022668,2]
[310900551,1704813038359,-2056.5857,0.00022668,2]
[310900552,1704813038368,-4777.3735,0.00022668,2]
[310900553,1704813038377,-472.4896,0.00022668,2]
[310900554,1704813038387,-164.08,0.00022669,2]
[310900555,1704813038396,-345.00219431,0.00022669,2]
[310900556,1704813038405,-156.91,0.00022673,2]
[310900557,1704813038414,-150.0,0.00022678,2]
[310900558,1704813038423,-300.0,0.00022732,2]
[310900559,1704813038433,-150.0,0.00022733,2]
[310900560,1704813038442,-748.78,0.0002274,2]
[310900561,1704813038451,-204.0,0.00022751,2]
[310900562,1704813038460,-5213.88058374,0.00022766,2]
[310900563,1704813038470,-5149.51614214,0.00022766,2]
[310900564,1704813038479,-2141.5294569,0.00022766,2]
[310900565,1704813038488,-2892.60523596,0.00022766,2]
[310900566,1704813038497,-2130.95546807,0.00022766,2]
[310900567,1704813038507,-162.16116058,0.00022766,2]
[310900568,1704813038516,-825.76813641,0.00022766,2]
[310900569,1704813038525,-79.72137931,0.00022766,2]
[310900575,1704813040438,-245.98964121,0.00022766,2]
[310900576,1704813040448,-385.02931366,0.00022766,2]
[310900577,1704813040457,-531.23153517,0.00022766,2]
[310900578,1704813040467,-220.26666446,0.00022766,2]
[310900579,1704813040477,-540.90072547,0.00022766,2]
[310900580,1704813040486,-155.63615164,0.00022766,2]
[310900581,1704813040495,-9153.48671099,0.00022766,2]
[310900582,1704813041049,-26849.57380609,0.00022766,2]
[310900583,1704813041061,-576.766264,0.00022766,2]
[310900584,1704813041070,-175.37272974,0.00022766,2]
[310900585,1704813041080,-4609.49037417,0.00022766,2]
[310900586,1704813041089,-1622.55779776,0.00022766,2]
[310900587,1704813041099,-249.39139602,0.00022766,2]
[310900588,1704813041109,-155.55451817,0.00022766,2]
[310900589,1704813041119,-1046.51724463,0.00022766,2]
[310900590,1704813041128,-2684.29646221,0.00022766,2]
[310900591,1704813041138,-155.52825456,0.00022766,2]
[310900592,1704813041147,-1331.10050194,0.00022767,2]
[310900593,1704813041157,-16013.43789167,0.00022767,2]
[310900594,1704813041166,-1058.5073427,0.00022767,2]
[310900595,1704813041176,-155.40173906,0.00022767,2]
[310900596,1704813041185,-234.78997094,0.00022767,2]
[310900597,1704813041195,-310.80558639,0.00022767,2]
[310900598,1704813041206,-111967.37997812,0.00022768,2]
[310900599,1704813041218,-763.469975,0.00022768,2]
[310900600,1704813041229,-250.118,0.00022768,2]
[310900601,1704813041246,-16742.60416813,0.00022768,2]
[310900602,1704813041255,-12127.0237064,0.00022769,2]
[310900603,1704813041275,-9474.82,0.00022769,2]
[310900604,1704813041287,-21712.72,0.00022769,2]
[310900605,1704813041297,-1990.54,0.00022769,2]
[310900606,1704813041309,-186.76,0.00022775,2]
[310900607,1704813041319,-156.91,0.00022787,2]
[310900608,1704813041329,-1500.0,0.00022795,2]
[310900609,1704813041338,-1000.0,0.00022798,2]
[310900610,1704813041348,-696.7146,0.00022798,2]
[310900611,1704813041358,-1971.7520275,0.000228,2]
[310900612,1704813041367,-414.0507,0.000228,2]
[310900613,1704813041377,-1500.0,0.00022806,2]
[310900614,1704813041386,-150.0,0.00022815,2]
[310900615,1704813041396,-1500.0,0.00022819,2]
[310900616,1704813041406,-1500.0,0.00022831,2]
[310900617,1704813041416,-415.91,0.00022847,2]
[310900618,1704813041426,-186.76,0.00022891,2]
[310900619,1704813041436,-1500.0,0.00022897,2]
[310900620,1704813041447,-2302.03358731,0.00022898,2]
[310900621,1704813041456,-234.570411,0.00022898,2]
[310900622,1704813041466,-1216.25,0.00022898,2]
[310900623,1704813041476,-8357.41,0.00022898,2]
[310900624,1704813041486,-251.18155046,0.00022898,2]
[310900625,1704813041495,-155.36444738,0.00022898,2]
[310900626,1704813041505,-254.24373235,0.00022898,2]
[310900627,1704813041515,-2051.57756355,0.00022898,2]
[310900628,1704813041524,-155.86245513,0.00022898,2]
[310900629,1704813041534,-242.64267204,0.00022898,2]
[310900630,1704813041544,-3065.70353787,0.00022898,2]
[310900631,1704813041556,-156.04013159,0.00022898,2]
[310900632,1704813041566,-192.24896308,0.00022898,2]
[310900633,1704813041576,-3110.98006756,0.00022898,2]
[310900634,1704813041586,-1500.0,0.00022899,2]
[310900635,1704813041595,-87208.46059699,0.000229,2]
[310900636,1704813041609,-10584.7378,0.000229,2]
[310900637,1704813041631,-2206.80160301,0.000229,2]
[310900638,1704813041642,-164.92968348,0.000229,2]
[310900639,1704813041653,-78.77306289,0.000229,2]
[310900640,1704813041666,-2021.12972152,0.000229,2]
[310900656,1704813042948,-507.51139252,0.00022665,2]
[310900658,1704813042961,-829.310152,0.00022665,2]
[310900661,1704813043007,-258.13370848,0.00022665,2]
[310900662,1704813043033,-1070.43220795,0.00022665,2]
[310900663,1704813043045,-522.73036951,0.00022665,2]
[310900664,1704813043065,-334.37839027,0.00022665,2]
[310900665,1704813043078,-2062.70861852,0.00022665,2]
[310900666,1704813043089,-2609.36086931,0.00022765,2]
[310900667,1704813043099,-717.87509257,0.00022765,2]
[310900668,1704813043109,-5950.62314357,0.000229,2]
[310900669,1704813043122,-18700.15782462,0.000229,2]
[310900670,1704813043138,-365.335,0.000229,2]
[310900671,1704813043188,-5939.45801899,0.000229,2]
[310900672,1704813043201,-5866.4374992,0.000229,2]
[310900673,1704813043314,-2035.64817389,0.000229,2]
[310900674,1704813043327,-2935.23010136,0.000229,2]
[310900680,1704813046247,-620.30278712,0.000229,2]
[310900681,1704813046292,-170.74682164,0.00022664,2]
[310900682,1704813046303,-5148.11318003,0.000229,2]
[310900683,1704813046315,-18709.29002971,0.000229,2]
[310900684,1704813046325,-6964.0412872,0.000229,2]
[310900685,1704813046339,-3361.14626393,0.000229,2]
[310900686,1704813046349,-600.62293735,0.000229,2]
[310900687,1704813046360,-156.91,0.00022902,2]
[310900688,1704813046370,-1500.0,0.00022909,2]
[310900689,1704813046380,-300.0,0.00022936,2]
[310900690,1704813046392,-1500.0,0.00022975,2]
[310900691,1704813046402,-188.83365057,0.00022988,2]
[310900692,1704813046412,-3594.11169516,0.00022998,2]
[310900693,1704813046422,-698.46305777,0.00022998,2]
[310900694,1704813046433,-66485.73158459,0.00022998,2]
[310900695,1704813046443,-150.0,0.00022999,2]
[310900696,1704813046453,-150.0,0.00022999,2]
[310900697,1704813046462,-150.0,0.00022999,2]
[310900698,1704813046472,-150.0,0.00022999,2]
[310900699,1704813046482,-150.0,0.00022999,2]
[310900700,1704813046491,-150.0,0.00022999,2]
[310900701,1704813046501,-150.0,0.00022999,2]
[310900702,1704813046511,-150.0,0.00022999,2]
[310900703,1704813046521,-150.0,0.00022999,2]
[310900704,1704813046531,-150.0,0.00022999,2]
[310900705,1704813046540,-150.0,0.00022999,2]
[310900706,1704813046551,-150.0,0.00022999,2]
[310900707,1704813046562,-91900.19208147,0.00023,2]
[310900708,1704813047210,-905.62653236,0.00023,2]
[310900709,1704813047226,-1323.85130258,0.00023,2]
[310900710,1704813047298,-649.19326457,0.00023,2]
[310900711,1704813047316,-351.0742336,0.00023,2]
[310900712,1704813047327,-6360.59807465,0.00023,2]
[310900713,1704813047346,-6003.77295865,0.00023,2]
[310900714,1704813047370,-1103.48821548,0.00023,2]
[310900715,1704813047382,-501.23073282,0.00023,2]
[310900716,1704813047394,-932.16297799,0.00023,2]
[310900717,1704813047406,-4333.3,0.00023,2]
[310900718,1704813047433,-2251.59999999,0.00023,2]
[310900719,1704813047445,-1136.3955969,0.00023,2]
[310900735,1704813052031,3184.56736085,0.00021757,2]
[310900748,1704813066469,200.5525746,0.00021918,2]
[310900760,1704813120141,174.73,0.000186,2]
[310900764,1704813121775,300.0,0.00022423,2]
[310900765,1704813129357,150.0,0.00022222,2]
[310900766,1704813145407,164.03,0.00022192,2]
[310900774,1704813177754,2963.3683,0.00022424,2]
[310900775,1704813181061,497.05,0.00022127,2]
[310900776,1704813193000,2000.0,0.00022127,2]
[310900777,1704813262338,186.81,0.00022003,2]
[310900779,1704813320306,1909.0,0.00022016,2]
[310900780,1704813334819,200.0,0.00022047,2]
[310900855,1704813355170,163.19,0.00022083,2]
[310900876,1704813358793,4850.0,0.00022439,2]
[310900884,1704813359599,187.50033149,0.00021533,2]
[310900936,1704813375638,1981.38,0.00021878,2]
[310900949,1704813380781,151.48,0.0002204,2]
[310900952,1704813381025,151.48,0.00022155,2]
[310900953,1704813381343,151.48,0.0002227,2]
[310900955,1704813382319,151.48,0.00022385,2]
[310900959,1704813382427,151.48,0.00022499,2]
[310900965,1704813383673,154.44,0.00022089,2]
[310900983,1704813401234,156.31797006,0.00022459,2]
[310901008,1704813410186,196.87,0.00021869,2]
[310901086,1704813428398,365.1,0.00021864,2]
[310901104,1704813438827,1430.0,0.00022439,2]
[310901149,1704813481197,229.25,0.0001989,2]
[310901150,1704813481285,229.25,0.00022153,2]
[310901157,1704813509148,854.13879068,0.00022153,2]
[310901160,1704813514084,548.47372776,0.00022153,2]
[310901161,1704813514116,390.36294162,0.00022153,2]
[310901162,1704813515218,159.91894216,0.00022153,2]
[310901165,1704813520809,156.53134415,0.00022153,2]
[310901166,1704813521089,171.15951699,0.00022153,2]
[310901167,1704813522384,2220.2594709,0.00022153,2]
[310901168,1704813522989,23900.0,0.00021801,2]
[310901169,1704813524309,202.06789943,0.00022153,2]
[310901170,1704813526606,262.36741189,0.00022153,2]
[310901186,1704813584570,168.6,0.00021807,2]
[310901193,1704813612373,696.14,0.00021801,2]
[310901194,1704813616513,621.17,0.000218,2]
[310901195,1704813616734,621.17,0.00021915,2]
[310901196,1704813616929,621.17,0.0002203,2]
[310901197,1704813617135,621.17,0.00022145,2]
[310901198,1704813617358,621.17,0.00022259,2]
[310901199,1704813617735,621.17,0.00022374,2]
[310901200,1704813617977,621.17,0.00022489,2]
[310901208,1704813642190,602.36,0.00021799,2]
[310901209,1704813651485,1497.64,0.00031,120]
[310901210,1704813656024,2000.0,0.00021799,2]
[310901240,1704813773805,822.0043,0.00022441,2]
[310901241,1704813777940,2175.28139828,0.00021581,2]
[310901244,1704813781635,237.61567005,0.00021,2]